bitfinex/quotes_SOLUSD_20250809
["timestamp","ask_amount","ask_price","bid_price","bid_amount"]
[1754756313185,0.1,180.65,180.64,66.17074497]
[1754756314481,0.1,180.65,180.64,27.11074497]
[1754756314798,0.1,180.65,180.64,66.19074497]
[1754756317172,0.1,180.65,180.64,71.72336797]
[1754756317393,0.1,180.65,180.64,37.06849545]
[1754756317577,0.1,180.65,180.64,76.4145294]
[1754756317992,0.1,180.65,180.64,50.4145294]
[1754756318189,0.1,180.65,180.64,5.53587245]
[1754756318410,0.1,180.65,180.61,5.59648573]
[1754756318411,6.24865695,180.65,180.61,5.59648573]
[1754756318581,0.1,180.65,180.63,5.81865695]
[1754756318881,0.33,180.64,180.63,39.08]
[1754756319276,0.1,180.65,180.63,39.08]
[1754756319600,0.33,180.64,180.63,39.08]
[1754756320472,0.1,180.65,180.63,39.08]
[1754756320695,0.1,180.65,180.63,44.61616509]
[1754756321295,0.1,180.65,180.63,39.08]
[1754756321479,0.33,180.64,180.63,39.08]
[1754756321893,6.14865695,180.64,180.62,39.08]
[1754756322100,5.81865695,180.64,180.62,39.08]
[1754756322304,0.33,180.63,180.62,39.08]
[1754756322815,6.14865695,180.63,180.61,0.06]
[1754756322993,6.14865695,180.62,180.61,0.06]
[1754756323795,11.68514238,180.62,180.61,0.06]
[1754756328190,13.78514238,180.62,180.61,0.06]
[1754756328693,28.89135795,180.62,180.61,0.06]
[1754756329026,7.96648543,180.62,180.61,0.06]
[1754756329195,13.78514238,180.62,180.61,0.06]
[1754756330500,15.10621557,180.61,180.58,0.06]
[1754756330814,5.81865695,180.59,180.58,0.06]
[1754756331404,6.14865695,180.59,180.58,0.06]
[1754756331595,21.80769902,180.62,180.58,0.06]
[1754756331799,5.81865695,180.59,180.58,0.06]
[1754756331996,0.33,180.6,180.58,0.06]
[1754756332211,5.81865695,180.59,180.58,0.06]
[1754756333903,5.81865695,180.61,180.58,0.06]
[1754756334298,5.81865695,180.59,180.58,0.06]
[1754756335626,5.8673939,180.6,180.58,0.06]
[1754756335806,5.81865695,180.59,180.58,0.06]
[1754756336528,5.81865695,180.6,180.58,0.06]
[1754756336718,5.81865695,180.6,180.58,0.71]
[1754756336923,5.81865695,180.6,180.58,0.06]
[1754756337501,5.81865695,180.59,180.58,0.06]
[1754756339822,11.35606212,180.59,180.58,0.06]
[1754756341821,11.68606212,180.59,180.58,0.06]
[1754756342220,5.53740517,180.59,180.58,0.06]
[1754756342409,11.35606212,180.59,180.58,0.06]
[1754756342821,11.68606212,180.59,180.58,0.06]
[1754756343313,5.53710875,180.6,180.58,0.06]
[1754756343514,5.81865695,180.59,180.58,0.06]
[1754756344505,11.35606212,180.59,180.58,0.06]
[1754756344707,5.81865695,180.59,180.58,0.06]
[1754756345313,5.81865695,180.59,180.58,0.76]
[1754756345737,5.81865695,180.59,180.58,0.06]
[1754756346032,11.35606212,180.59,180.58,0.06]
[1754756347742,5.81865695,180.59,180.58,0.76]
[1754756348241,5.81865695,180.59,180.58,0.06]
[1754756348450,5.81865695,180.6,180.58,0.76]
[1754756348617,5.81865695,180.6,180.59,0.7]
[1754756349236,5.53686112,180.61,180.59,0.7]
[1754756349414,5.81865695,180.6,180.59,0.7]
[1754756349813,2.1,180.62,180.59,0.7]
[1754756350027,2.1,180.62,180.59,6.51865695]
[1754756350238,2.1,180.62,180.59,5.81865695]
[1754756350444,0.03,180.63,180.6,0.7]
[1754756350829,0.03,180.63,180.61,5.81865695]
[1754756351037,0.03,180.63,180.6,6.51865695]
[1754756351538,0.03,180.63,180.61,0.7]
[1754756351916,0.03,180.63,180.62,0.7]
[1754756355126,0.03,180.63,180.62,6.51865695]
[1754756355753,0.03,180.63,180.62,12.05514238]
[1754756359954,0.03,180.63,180.62,27.16135795]
[1754756360548,0.03,180.63,180.62,53.16135795]
[1754756360746,0.1,180.65,180.64,26.0]
[1754756360961,0.1,180.65,180.64,46.92487252]
[1754756361159,0.1,180.65,180.64,47.62487252]
[1754756361542,0.1,180.65,180.64,53.16074497]
[1754756363942,0.1,180.65,180.62,4.716171]
[1754756364150,0.1,180.65,180.63,39.14]
[1754756364452,0.1,180.65,180.63,39.84]
[1754756364650,0.1,180.65,180.64,6.51865695]
[1754756366345,0.1,180.65,180.64,12.0545294]
[1754756366545,0.1,180.65,180.64,6.23587245]
[1754756366745,0.1,180.65,180.64,6.51865695]
[1754756366949,0.1,180.65,180.63,39.14]
[1754756367452,0.1,180.65,180.63,39.84]
[1754756367845,0.1,180.65,180.63,45.65865695]
[1754756368472,0.1,180.65,180.63,44.95865695]
[1754756368770,0.1,180.65,180.64,6.51865695]
[1754756369243,0.1,180.65,180.64,6.48865695]
[1754756369567,0.1,180.65,180.64,21.59487252]
[1754756370136,0.1,180.65,180.64,27.13074497]
[1754756370660,0.1,180.65,180.64,21.31208802]
[1754756370849,0.1,180.65,180.64,66.23074497]
[1754756372566,0.1,180.65,180.64,51.1245294]
[1754756373143,0.1,180.65,180.64,12.0245294]
[1754756373466,0.1,180.65,180.64,51.1045294]
[1754756374893,0.1,180.65,180.64,44.89865695]
[1754756375093,0.1,180.65,180.64,50.4345294]
[1754756375456,0.1,180.65,180.64,51.1045294]
[1754756377474,0.1,180.65,180.64,66.21074497]
[1754756379372,0.1,180.65,180.64,92.21074497]
[1754756380875,0.1,180.65,180.64,86.39208802]
[1754756381074,0.1,180.65,180.64,92.21074497]
[1754756381962,0.1,180.65,180.64,92.23074497]
[1754756382162,0.1,180.65,180.64,77.1245294]
[1754756382369,0.1,180.65,180.64,76.4545294]
[1754756382565,0.1,180.65,180.64,77.1245294]
[1754756383183,0.1,180.65,180.64,65.1]
[1754756383385,0.1,180.65,180.64,39.1]
[1754756384687,0.1,180.65,180.64,51.1245294]
[1754756385066,0.1,180.65,180.64,92.23074497]
[1754756385263,0.1,180.65,180.64,66.23074497]
[1754756386996,0.1,180.65,180.64,51.1445294]
[1754756387197,0.1,180.65,180.64,66.25074497]
[1754756394292,0.1,180.65,180.64,65.58074497]
[1754756394504,0.1,180.65,180.64,91.58074497]
[1754756394805,0.1,180.65,180.64,92.25074497]
[1754756395371,0.1,180.65,180.64,66.25074497]
[1754756395981,0.1,180.65,180.64,59.76208802]
[1754756396190,0.1,180.65,180.64,65.58074497]
[1754756396394,0.1,180.65,180.64,39.12]
[1754756396585,0.1,180.65,180.64,70.91865695]
[1754756396793,0.1,180.65,180.64,71.58865695]
[1754756397974,0.1,180.65,180.64,65.1]
[1754756398273,0.1,180.65,180.64,39.1]
[1754756399202,0.46,180.65,180.64,39.1]
[1754756399402,0.1,180.65,180.64,39.1]
[1754756400373,0.1,180.65,180.61,31.59673449]
[1754756400374,0.46,180.65,180.61,31.59673449]
[1754756400579,0.36,180.64,180.61,31.59673449]
[1754756400799,0.1,180.65,180.62,39.1]
[1754756401021,0.1,180.65,180.63,0.7]
[1754756401305,0.1,180.65,180.64,39.1]
[1754756401482,0.36,180.64,180.63,39.1]
[1754756401681,0.36,180.64,180.62,39.12]
[1754756402803,5.91865695,180.65,180.62,44.65644969]
[1754756403003,6.17865695,180.64,180.62,39.12]
[1754756403309,5.81865695,180.64,180.62,39.12]
[1754756403599,6.17865695,180.64,180.62,39.12]
[1754756403803,5.81865695,180.64,180.62,39.12]
[1754756405015,6.17865695,180.64,180.62,39.12]
[1754756405886,6.17865695,180.63,180.61,0.06]
[1754756406084,6.17865695,180.62,180.61,0.06]
[1754756407094,11.71514238,180.62,180.61,0.06]
[1754756407284,6.17865695,180.62,180.61,0.06]
[1754756412322,0.36,180.62,180.61,0.06]
[1754756412517,6.17865695,180.62,180.61,0.06]
[1754756412725,5.81865695,180.62,180.61,0.06]
[1754756413122,6.17865695,180.62,180.61,0.06]
[1754756413726,5.81865695,180.62,180.61,0.06]
[1754756413919,2.1,180.63,180.61,0.76]
[1754756414109,2.1,180.63,180.62,5.81865695]
[1754756414423,2.1,180.63,180.62,6.51865695]
[1754756414606,2.1,180.63,180.62,0.7]
[1754756414797,0.1,180.65,180.62,6.51865695]
[1754756415123,0.1,180.65,180.64,11.3545294]
[1754756415342,0.1,180.65,180.64,50.4345294]
[1754756415501,0.1,180.65,180.64,51.1345294]
[1754756415702,0.1,180.65,180.64,45.31587245]
[1754756416009,0.1,180.65,180.64,51.1345294]
[1754756417220,0.1,180.65,180.64,45.31587245]
[1754756417731,0.1,180.65,180.64,51.1345294]
[1754756418904,0.1,180.65,180.64,45.31587245]
[1754756419135,0.1,180.65,180.64,51.1345294]
[1754756419341,0.1,180.65,180.64,45.31587245]
[1754756420622,0.1,180.65,180.64,39.08]
[1754756421915,0.1,180.65,180.63,6.235916]
[1754756422115,0.1,180.65,180.64,39.08]
[1754756422333,0.1,180.65,180.64,45.59865695]
[1754756422533,0.1,180.65,180.64,39.78]
[1754756423451,0.1,180.65,180.64,45.31587245]
[1754756423617,0.1,180.65,180.64,39.78]
[1754756424723,0.1,180.65,180.64,51.1345294]
[1754756429950,0.1,180.65,180.64,92.24074497]
[1754756430941,1e-08,180.65,180.64,66.24074497]
[1754756434050,1e-08,180.65,180.64,155.84074497]
[1754756434663,1e-08,180.65,180.64,155.82074497]
[1754756434957,1e-08,180.65,180.64,150.00208802]
[1754756435152,1e-08,180.65,180.64,155.82074497]
[1754756436651,0.03,180.67,180.66,41.10621557]
[1754756436843,0.03,180.67,180.66,85.98487252]
[1754756437042,0.03,180.67,180.66,86.68487252]
[1754756437660,0.03,180.67,180.66,92.22013212]
[1754756437854,0.03,180.67,180.66,32.2352596]
[1754756438137,0.03,180.67,180.66,76.41391655]
[1754756438345,0.03,180.67,180.66,70.5952596]
[1754756438556,0.39,180.67,180.66,39.06]
[1754756439950,0.03,180.67,180.66,39.06]
[1754756443666,0.39,180.67,180.66,39.06]
[1754756443970,6.20865695,180.67,180.66,39.06]
[1754756444948,0.03,180.67,180.66,39.06]
[1754756445848,11.74361017,180.67,180.63,0.06]
[1754756446167,11.713926,180.66,180.64,39.06]
[1754756446355,6.17865695,180.66,180.64,39.06]
[1754756447640,6.17865695,180.66,180.64,39.12]
[1754756448265,11.38365772,180.67,180.64,39.12]
[1754756450074,5.81865695,180.66,180.64,39.12]
[1754756450945,5.81865695,180.66,180.64,39.82]
[1754756451146,0.03,180.67,180.64,39.82]
[1754756451455,5.84865695,180.67,180.64,39.82]
[1754756452371,0.03,180.67,180.64,39.82]
[1754756452582,5.84865695,180.67,180.64,39.82]
[1754756452751,0.03,180.67,180.65,0.7]
[1754756453147,0.03,180.67,180.66,0.7]
[1754756453350,0.03,180.67,180.66,39.76]
[1754756454771,0.03,180.67,180.66,39.06]
[1754756455078,5.84865695,180.67,180.66,39.06]
[1754756455579,0.03,180.67,180.66,39.76]
[1754756456073,0.03,180.67,180.66,39.06]
[1754756457577,5.84865695,180.67,180.66,39.06]
[1754756458462,6.20865695,180.67,180.64,1e-08]
[1754756458657,5.81865695,180.65,180.64,1e-08]
[1754756459174,6.17865695,180.65,180.64,1e-08]
[1754756459695,11.71422296,180.65,180.64,1e-08]
[1754756460864,162.70621557,180.64,180.63,0.06]
[1754756461075,162.70621557,180.64,180.61,0.06]
[1754756461076,26.0,180.62,180.61,0.06]
[1754756461368,31.81865695,180.62,180.61,0.06]
[1754756461568,37.71514238,180.62,180.61,0.06]
[1754756461766,32.17865695,180.62,180.61,0.06]
[1754756462997,8.27865695,180.62,180.61,0.06]
[1754756463157,7.91865695,180.62,180.61,0.06]
[1754756464589,7.91865695,180.62,180.61,0.71]
[1754756464794,2.1,180.62,180.61,0.71]
[1754756464992,5.84865695,180.67,180.61,6.52865695]
[1754756465201,0.03,180.67,180.63,5.81865695]
[1754756465378,0.03,180.67,180.64,6.46865695]
[1754756465584,0.03,180.67,180.64,5.81865695]
[1754756465889,0.03,180.67,180.65,6.18531301]
[1754756466283,0.03,180.67,180.66,0.65]
[1754756467496,0.03,180.67,180.66,6.46865695]
[1754756467800,0.03,180.67,180.66,12.00391655]
[1754756468000,0.03,180.67,180.66,6.1852596]
[1754756468198,0.03,180.67,180.66,12.00391655]
[1754756468372,0.03,180.67,180.66,6.1852596]
[1754756468573,5.84865695,180.67,180.64,0.65]
[1754756468793,5.81865695,180.65,180.62,31.53644348]
[1754756469003,5.81865695,180.64,180.62,6.18644348]
[1754756469184,0.03,180.63,180.62,6.18644348]
[1754756470396,0.03,180.63,180.61,44.65677625]
[1754756470598,5.84865695,180.63,180.62,0.65]
[1754756470799,0.03,180.63,180.62,0.65]
[1754756471877,0.03,180.63,180.61,44.65677625]
[1754756471878,5.84865695,180.63,180.61,44.65677625]
[1754756472198,5.81865695,180.62,180.61,0.06]
[1754756472906,0.03,180.63,180.61,0.06]
[1754756473085,0.03,180.63,180.62,0.65]
[1754756473904,0.03,180.63,180.62,6.18648543]
[1754756474109,0.03,180.63,180.62,12.00514238]
[1754756474824,0.03,180.63,180.62,51.06514238]
[1754756475808,0.03,180.63,180.62,45.24648543]
[1754756477087,0.03,180.63,180.62,51.06514238]
[1754756477285,0.03,180.63,180.62,60.352701]
[1754756477496,0.03,180.63,180.62,66.17135795]
[1754756478587,0.03,180.63,180.62,45.24648543]
[1754756478784,0.03,180.63,180.62,66.17135795]
[1754756481409,0.03,180.63,180.62,60.352701]
[1754756481711,0.03,180.63,180.62,51.06514238]
[1754756481908,0.03,180.63,180.62,45.24648543]
[1754756482206,0.03,180.63,180.62,39.71]
[1754756483587,0.03,180.63,180.62,45.24648543]
[1754756483792,0.03,180.63,180.62,44.59648543]
[1754756484011,0.03,180.63,180.62,39.06]
[1754756485400,0.03,180.63,180.61,0.06]
[1754756487517,6.17865695,180.62,180.61,0.06]
[1754756489504,11.71514238,180.62,180.61,0.06]
[1754756493430,5.81865695,180.62,180.61,0.06]
[1754756493722,5.81865695,180.62,180.61,0.75]
[1754756493924,0.03,180.63,180.61,0.75]
[1754756494107,0.03,180.63,180.61,0.06]
[1754756494427,0.03,180.63,180.62,0.69]
[1754756498328,0.03,180.63,180.61,0.06]
[1754756498638,0.03,180.63,180.61,0.75]
[1754756502223,0.03,180.63,180.61,6.28676598]
[1754756502463,0.03,180.63,180.62,0.69]
[1754756503854,5.84865695,180.63,180.61,0.06]
[1754756504029,5.81865695,180.62,180.61,0.06]
[1754756507385,0.03,180.63,180.61,0.75]
[1754756507673,5.81865695,180.62,180.61,0.75]
[1754756509051,5.81865695,180.62,180.61,0.06]
[1754756511985,0.03,180.63,180.61,0.75]
[1754756512158,5.81865695,180.62,180.61,0.06]
[1754756512356,0.03,180.63,180.61,0.06]
[1754756512852,0.03,180.63,180.62,0.69]
[1754756513755,5.84865695,180.63,180.61,0.06]
[1754756514895,5.84865695,180.63,180.62,0.69]
[1754756515072,5.84865695,180.63,180.61,0.06]
[1754756515491,5.81865695,180.62,180.61,0.06]
[1754756515788,0.03,180.63,180.61,0.06]
[1754756515956,5.84865695,180.63,180.61,0.06]
[1754756516585,5.84865695,180.63,180.61,0.75]
[1754756516784,5.81865695,180.62,180.61,0.06]
[1754756517451,11.71514238,180.62,180.61,0.06]
[1754756520581,15.10621557,180.61,180.6,1e-08]
[1754756520772,25.94114254,180.61,180.59,0.06]
[1754756520973,6.17865695,180.6,180.59,0.06]
[1754756521574,11.71575551,180.6,180.59,0.06]
[1754756522069,26.82197108,180.6,180.58,0.06]
[1754756522275,45.23865695,180.59,180.58,0.06]
[1754756522701,41.10621557,180.58,180.55,0.06]
[1754756522875,37.6373139,180.57,180.53,0.06]
[1754756523074,11.6373139,180.55,180.53,0.06]
[1754756523380,5.81865695,180.55,180.54,0.77]
[1754756523569,5.81865695,180.56,180.54,0.77]
[1754756523773,5.81865695,180.55,180.54,0.77]
[1754756524173,173.96,180.6,180.54,0.77]
[1754756524376,5.81865695,180.56,180.54,0.77]
[1754756524691,65.06,180.6,180.54,0.77]
[1754756524911,26.03,180.63,180.55,5.81865695]
[1754756525090,5.81865695,180.61,180.56,5.81865695]
[1754756525275,5.81865695,180.61,180.57,0.71]
[1754756525802,39.06,180.62,180.57,6.52865695]
[1754756526105,44.87865695,180.62,180.58,0.71]
[1754756526409,0.03,180.63,180.59,5.81865695]
[1754756526711,0.03,180.63,180.61,5.81865695]
[1754756527004,0.03,180.63,180.62,0.71]
[1754756528088,0.03,180.63,180.62,6.52865695]
[1754756528603,0.03,180.63,180.62,12.06514238]
[1754756529104,0.03,180.63,180.62,0.71]
[1754756530280,0.03,180.63,180.6,31.53708509]
[1754756530493,0.03,180.63,180.62,0.71]
[1754756537918,0.03,180.63,180.62,12.06514238]
[1754756538412,0.03,180.63,180.62,27.17135795]
[1754756540186,0.03,180.63,180.62,53.17135795]
[1754756542119,0.03,180.63,180.62,27.17135795]
[1754756543034,0.03,180.63,180.62,53.17135795]
[1754756543525,0.03,180.63,180.62,27.17135795]
[1754756544615,0.03,180.63,180.62,53.17135795]
[1754756545614,0.03,180.63,180.62,38.06514238]
[1754756545811,0.03,180.63,180.62,53.17135795]
[1754756548921,0.03,180.63,180.62,92.21135795]
[1754756549718,0.03,180.63,180.62,66.21135795]
[1754756549934,0.03,180.65,180.62,66.21135795]
[1754756549935,0.03,180.65,180.64,15.10621557]
[1754756550100,0.03,180.65,180.64,59.96487252]
[1754756550307,0.03,180.65,180.64,60.66487252]
[1754756550517,1e-08,180.65,180.64,60.66487252]
[1754756551938,1e-08,180.65,180.64,66.20074497]
[1754756553433,1e-08,180.65,180.64,66.75433221]
[1754756553601,1e-08,180.65,180.64,69.52808258]
[1754756554822,1e-08,180.65,180.64,71.74310558]
[1754756555236,1e-08,180.65,180.64,71.18951834]
[1754756555536,1e-08,180.65,180.64,155.80074497]
[1754756556500,1e-08,180.67,180.66,41.10621557]
[1754756556696,0.03,180.69,180.68,41.10621557]
[1754756556936,0.03,180.69,180.68,85.96487252]
[1754756557228,0.03,180.69,180.68,86.66487252]
[1754756557797,0.03,180.69,180.68,92.1995194]
[1754756560320,0.03,180.69,180.68,52.4595194]
[1754756560510,0.03,180.69,180.68,85.68086245]
[1754756560715,0.03,180.69,180.68,85.66086245]
[1754756560917,0.03,180.69,180.68,70.55464688]
[1754756561528,0.03,180.69,180.68,76.37330383]
[1754756561716,0.03,180.69,180.68,92.1795194]
[1754756561914,0.03,180.69,180.68,91.4795194]
[1754756562118,0.03,180.69,180.68,70.55464688]
[1754756562502,0.03,180.69,180.68,65.02]
[1754756563015,0.03,180.69,180.68,26.0]
[1754756563303,0.39,180.69,180.68,65.02]
[1754756563526,0.03,180.69,180.68,65.02]
[1754756564111,0.39,180.69,180.68,65.02]
[1754756564308,0.03,180.69,180.68,65.02]
[1754756565618,0.03,180.69,180.68,70.55464688]
[1754756565805,0.03,180.69,180.68,77.07330383]
[1754756566246,0.03,180.69,180.68,71.25464688]
[1754756566530,0.03,180.69,180.68,76.37330383]
[1754756567635,0.03,180.69,180.68,77.07330383]
[1754756567816,0.03,180.69,180.68,76.37330383]
[1754756568022,0.03,180.69,180.68,65.02]
[1754756568220,0.03,180.69,180.68,76.37330383]
[1754756568421,0.03,180.69,180.68,77.07330383]
[1754756568818,0.03,180.69,180.68,76.37330383]
[1754756569018,0.03,180.69,180.68,65.02]
[1754756569219,0.03,180.69,180.68,70.55464688]
[1754756570132,0.03,180.69,180.68,65.02]
[1754756574439,0.39,180.69,180.68,65.02]
[1754756574633,6.20865695,180.69,180.67,65.02]
[1754756575126,6.20865695,180.69,180.66,39.02]
[1754756575325,5.84865695,180.69,180.66,39.02]
[1754756577542,5.84865695,180.69,180.66,39.72]
[1754756577851,5.84865695,180.69,180.66,39.02]
[1754756578148,0.03,180.69,180.66,39.02]
[1754756578344,6.17865695,180.68,180.66,39.02]
[1754756578744,6.17865695,180.68,180.64,37.41445108]
[1754756578952,6.17865695,180.68,180.65,39.02]
[1754756579322,5.84865695,180.69,180.65,39.02]
[1754756579530,5.84865695,180.69,180.65,39.69]
[1754756579733,5.84865695,180.69,180.65,45.22553058]
[1754756580235,6.20865695,180.69,180.65,45.22553058]
[1754756580459,6.20865695,180.69,180.65,39.69]
[1754756581128,0.03,180.69,180.65,50.37419489]
[1754756581325,0.03,180.69,180.66,0.67]
[1754756581548,6.20865695,180.69,180.65,44.83865695]
[1754756581734,5.81865695,180.67,180.64,26.06]
[1754756581925,5.81865695,180.67,180.66,0.06]
[1754756582127,6.17865695,180.67,180.66,0.06]
[1754756583553,5.81865695,180.67,180.66,0.06]
[1754756584643,5.81865695,180.68,180.66,0.06]
[1754756584844,0.03,180.69,180.67,0.67]
[1754756585463,5.84865695,180.69,180.66,39.08]
[1754756585953,5.84865695,180.69,180.66,39.75]
[1754756586460,0.03,180.69,180.66,39.08]
[1754756586658,0.03,180.69,180.67,0.67]
[1754756587042,5.84865695,180.69,180.66,39.08]
[1754756587232,5.81865695,180.67,180.66,0.06]
[1754756587734,5.91865695,180.67,180.66,0.06]
[1754756588237,11.45361017,180.67,180.66,0.06]
[1754756589366,11.35361017,180.67,180.66,0.06]
[1754756589656,5.81865695,180.67,180.66,0.06]
[1754756589864,5.91865695,180.67,180.66,0.06]
[1754756590266,5.81865695,180.67,180.66,0.06]
[1754756590673,0.03,180.69,180.66,0.73]
[1754756590674,5.84865695,180.69,180.66,0.73]
[1754756590879,0.03,180.69,180.66,0.06]
[1754756591037,0.03,180.69,180.67,0.67]
[1754756591238,0.03,180.69,180.66,0.06]
[1754756591473,0.03,180.69,180.67,0.67]
[1754756591637,5.84865695,180.69,180.67,0.67]
[1754756591837,0.03,180.69,180.68,0.67]
[1754756593669,0.03,180.69,180.68,6.20464688]
[1754756594171,0.03,180.69,180.68,51.04330383]
[1754756594675,0.03,180.69,180.68,45.22464688]
[1754756594973,0.03,180.69,180.68,44.55464688]
[1754756595151,0.03,180.69,180.68,45.22464688]
[1754756596073,0.03,180.69,180.68,51.04330383]
[1754756598265,0.03,180.69,180.68,66.1495194]
[1754756598684,0.03,180.69,180.68,51.04330383]
[1754756599168,0.03,180.69,180.68,45.22464688]
[1754756599956,0.03,180.69,180.68,51.04330383]
[1754756603294,0.03,180.69,180.68,39.02]
[1754756603950,0.03,180.69,180.68,39.69]
[1754756604151,0.03,180.69,180.68,45.22464688]
[1754756604479,0.03,180.69,180.68,51.04330383]
[1754756605482,0.03,180.69,180.68,45.22464688]
[1754756605653,0.03,180.69,180.68,44.55464688]
[1754756605854,0.03,180.69,180.68,45.22464688]
[1754756606383,0.03,180.69,180.68,51.04330383]
[1754756608876,0.03,180.69,180.68,53.25844983]
[1754756610090,0.03,180.69,180.68,68.3646654]
[1754756611087,0.03,180.71,180.7,15.10621557]
[1754756611309,0.03,180.71,180.7,59.94487252]
[1754756611584,0.03,180.71,180.7,60.66487252]
[1754756611794,0.03,180.71,180.7,60.16487252]
[1754756612168,0.03,180.71,180.7,65.69890683]
[1754756613501,0.03,180.71,180.7,32.25403431]
[1754756613799,0.03,180.71,180.7,66.19890683]
[1754756614165,1e-08,180.71,180.7,72.57096721]
[1754756615104,1e-08,180.71,180.7,66.19890683]
[1754756616321,1e-08,180.71,180.7,72.01756378]
[1754756617502,1e-08,180.71,180.7,155.79890683]
[1754756618511,1e-08,180.71,180.7,158.01307183]
[1754756621536,1e-08,180.71,180.7,152.19441488]
[1754756621812,1e-08,180.71,180.7,158.01307183]
[1754756622815,1e-08,180.71,180.7,163.83172878]
[1754756623012,1e-08,180.73,180.71,15.10621557]
[1754756623208,0.08049346,180.78,180.76,15.10621557]
[1754756623514,0.08049346,180.78,180.77,59.92487252]
[1754756624828,0.08049346,180.78,180.77,60.64487252]
[1754756625221,0.08049346,180.78,180.77,71.99542087]
[1754756625830,0.08049346,180.78,180.77,71.27542087]
[1754756627710,0.08049346,180.78,180.77,56.1692053]
[1754756628224,0.08049346,180.78,180.77,82.1692053]
[1754756629118,0.08049346,180.78,180.77,76.3505483]
[1754756629738,0.44049346,180.78,180.76,11.63731395]
[1754756629943,0.44049346,180.78,180.77,39.0]
[1754756630247,0.11049346,180.78,180.77,39.0]
[1754756632258,6.28915041,180.78,180.74,31.818657]
[1754756632424,5.92915041,180.78,180.74,26.0]
[1754756632730,6.17865695,180.77,180.75,39.0]
[1754756632931,6.17865695,180.76,180.75,39.0]
[1754756633529,5.92915041,180.78,180.75,39.0]
[1754756633718,0.47049346,180.78,180.75,39.0]
[1754756633922,6.28915041,180.78,180.75,39.0]
[1754756634225,6.17865695,180.77,180.75,39.0]
[1754756635245,0.11049346,180.78,180.75,39.0]
[1754756635423,6.28915041,180.78,180.75,39.0]
[1754756637045,6.17865695,180.77,180.75,39.0]
[1754756637938,5.81865695,180.77,180.74,39.0]
[1754756638136,6.17865695,180.77,180.74,39.0]
[1754756639433,0.36,180.77,180.74,39.0]
[1754756639653,6.17865695,180.77,180.74,39.0]
[1754756640159,6.17865695,180.76,180.74,39.0]
[1754756640335,6.17865695,180.75,180.74,39.0]
[1754756640535,6.17865695,180.75,180.71,26.0]
[1754756640850,5.53197583,180.77,180.7,6.928657]
[1754756640851,5.81865695,180.73,180.72,39.0]
[1754756641247,6.17865695,180.73,180.7,39.06]
[1754756641553,0.36,180.73,180.7,39.06]
[1754756641860,5.81865695,180.73,180.7,39.06]
[1754756642442,5.81865695,180.73,180.7,39.75]
[1754756642849,5.81865695,180.73,180.7,39.06]
[1754756643057,5.81865695,180.72,180.7,39.06]
[1754756643666,6.17865695,180.71,180.7,0.06]
[1754756645459,11.71238502,180.71,180.7,0.06]
[1754756648248,11.35238502,180.71,180.7,0.06]
[1754756649050,52.83248797,180.74,180.7,0.06]
[1754756649051,5.53330834,180.73,180.7,0.06]
[1754756649249,5.81865695,180.71,180.7,0.06]
[1754756650949,5.81865695,180.71,180.7,0.75]